[Event "*** Titled Tuesday Blitz"]
[Site "Chess.com"]
[Date "2021.04.06"]
[Round "6"]
[White "kuli4ik"]
[Black "Mamedyarov_twitch"]
[Result "1/2-1/2"]
[WhiteElo "2880"]
[BlackElo "3009"]
[TimeControl "180+1"]
[EndTime "11:08:51 PDT"]
[Termination "Game drawn by repetition"]

1. Nf3 {[%clk 0:03:00.9]} 1... d5 {[%clk 0:02:58.6]} 2. g3 {[%clk 0:03:00.2]}
2... Nf6 {[%clk 0:02:54]} 3. Bg2 {[%clk 0:03:00.4]} 3... g6 {[%clk 0:02:52.8]}
4. b3 {[%clk 0:02:59.4]} 4... Bg7 {[%clk 0:02:52.8]} 5. Bb2 {[%clk 0:03:00.1]}
5... O-O {[%clk 0:02:53.3]} 6. c4 {[%clk 0:03:00.4]} 6... dxc4 {[%clk
0:02:50.1]} 7. bxc4 {[%clk 0:03:01.3]} 7... c5 {[%clk 0:02:50.3]} 8. O-O {[%clk
0:03:00.8]} 8... Nc6 {[%clk 0:02:51]} 9. d3 {[%clk 0:03:00.7]} 9... Qc7 {[%clk
0:02:47.3]} 10. Nc3 {[%clk 0:02:59.5]} 10... Rd8 {[%clk 0:02:47.8]} 11. Rb1
{[%clk 0:02:51.8]} 11... Bf5 {[%clk 0:02:38.6]} 12. Nd2 {[%clk 0:02:47.2]} 12...
Rac8 {[%clk 0:02:34.4]} 13. Nd5 {[%clk 0:02:43.5]} 13... Qd7 {[%clk 0:02:31.6]}
14. Nxf6+ {[%clk 0:02:38.6]} 14... Bxf6 {[%clk 0:02:26.2]} 15. Bxf6 {[%clk
0:02:38.1]} 15... exf6 {[%clk 0:02:27.1]} 16. Ne4 {[%clk 0:02:34.7]} 16... Qe7
{[%clk 0:02:25.5]} 17. Nc3 {[%clk 0:02:22.4]} 17... b6 {[%clk 0:02:17.4]} 18.
Nd5 {[%clk 0:02:20.4]} 18... Qd6 {[%clk 0:02:17.4]} 19. Qd2 {[%clk 0:02:15.8]}
19... Kg7 {[%clk 0:02:16.9]} 20. Rfe1 {[%clk 0:01:57.2]} 20... h5 {[%clk
0:02:16.1]} 21. h4 {[%clk 0:01:56.7]} 21... Re8 {[%clk 0:02:06.7]} 22. Qc3
{[%clk 0:01:19.7]} 22... Bg4 {[%clk 0:01:51.2]} 23. Ne3 {[%clk 0:00:59.9]} 23...
Nd4 {[%clk 0:01:46]} 24. Nxg4 {[%clk 0:00:57.1]} 24... hxg4 {[%clk 0:01:46.9]}
25. e3 {[%clk 0:00:43.9]} 25... Nf3+ {[%clk 0:01:43.3]} 26. Bxf3 {[%clk
0:00:44.2]} 26... gxf3 {[%clk 0:01:44.2]} 27. e4 {[%clk 0:00:45.1]} 27... Qe6
{[%clk 0:01:10.6]} 28. Re3 {[%clk 0:00:44.8]} 28... Qg4 {[%clk 0:01:08.3]} 29.
Qd2 {[%clk 0:00:30.1]} 29... Rcd8 {[%clk 0:01:01.1]} 30. Qd1 {[%clk 0:00:28.4]}
30... f5 {[%clk 0:01:01.3]} 31. e5 {[%clk 0:00:15.9]} 31... f4 {[%clk
0:00:30.4]} 32. Rxf3 {[%clk 0:00:16.1]} 32... Rd4 {[%clk 0:00:20.4]} 33. Qe2
{[%clk 0:00:12.2]} 33... Rh8 {[%clk 0:00:14.1]} 34. Re1 {[%clk 0:00:08.5]} 34...
Rxh4 {[%clk 0:00:13.2]} 35. e6 {[%clk 0:00:08.9]} 35... fxg3 {[%clk 0:00:06.9]}
36. Rxf7+ {[%clk 0:00:07.5]} 36... Kh6 {[%clk 0:00:04.7]} 37. Qxg4 {[%clk
0:00:05.5]} 37... Rdxg4 {[%clk 0:00:05.6]} 38. f3 {[%clk 0:00:05.9]} 38... g2
{[%clk 0:00:04.1]} 39. fxg4 {[%clk 0:00:05.8]} 39... Rh1+ {[%clk 0:00:04.5]} 40.
Kxg2 {[%clk 0:00:06.4]} 40... Rxe1 {[%clk 0:00:05]} 41. e7 {[%clk 0:00:07]}
41... Kg5 {[%clk 0:00:04]} 42. Kf3 {[%clk 0:00:06.1]} 42... a6 {[%clk
0:00:03.4]} 43. a4 {[%clk 0:00:06]} 43... a5 {[%clk 0:00:02.3]} 44. Kf2 {[%clk
0:00:05.5]} 44... Re5 {[%clk 0:00:02.7]} 45. Kg3 {[%clk 0:00:05.9]} 45... Re3+
{[%clk 0:00:02.7]} 46. Kf2 {[%clk 0:00:06.1]} 46... Re5 {[%clk 0:00:03.3]} 47.
Kf3 {[%clk 0:00:06.6]} 47... Re1 {[%clk 0:00:03.8]} 48. Kf2 {[%clk 0:00:06.2]}
48... Re5 {[%clk 0:00:03.9]} 1/2-1/2

[Event "*** Titled Tuesday Blitz"]
[Site "Chess.com"]
[Date "2021.04.06"]
[Round "6"]
[White "Chesswizard_2007"]
[Black "RD4ever"]
[Result "1/2-1/2"]
[WhiteElo "2706"]
[BlackElo "2878"]
[TimeControl "180+1"]
[EndTime "11:08:51 PDT"]
[Termination "Game drawn by repetition"]

1. Nf3 {[%clk 0:03:00.9]} 1... Nf6 {[%clk 0:02:58.8]} 2. c4 {[%clk 0:02:59.2]}
2... c5 {[%clk 0:02:56.5]} 3. g3 {[%clk 0:02:55.3]} 3... b6 {[%clk 0:02:56.1]}
4. Bg2 {[%clk 0:02:52.5]} 4... Bb7 {[%clk 0:02:56.2]} 5. O-O {[%clk 0:02:53.1]}
5... e6 {[%clk 0:02:53.7]} 6. Nc3 {[%clk 0:02:53.3]} 6... Be7 {[%clk 0:02:53.8]}
7. d4 {[%clk 0:02:50]} 7... cxd4 {[%clk 0:02:54.7]} 8. Nxd4 {[%clk 0:02:50.9]}
8... Bxg2 {[%clk 0:02:54.1]} 9. Kxg2 {[%clk 0:02:51.8]} 9... Qc8 {[%clk
0:02:55]} 10. b3 {[%clk 0:02:47.5]} 10... O-O {[%clk 0:02:53.5]} 11. Bb2 {[%clk
0:02:46.3]} 11... Nc6 {[%clk 0:02:53.3]} 12. Rc1 {[%clk 0:02:44.4]} 12... Qb7
{[%clk 0:02:51.6]} 13. Kg1 {[%clk 0:02:43.1]} 13... a6 {[%clk 0:02:51.7]} 14.
Nxc6 {[%clk 0:02:41.1]} 14... Qxc6 {[%clk 0:02:50.9]} 15. Qd3 {[%clk 0:02:40.7]}
15... Rac8 {[%clk 0:02:40.9]} 16. Rfd1 {[%clk 0:02:38.7]} 16... Rfd8 {[%clk
0:02:33.9]} 17. h3 {[%clk 0:02:23.4]} 17... d6 {[%clk 0:02:31.7]} 18. Qe3 {[%clk
0:02:20.7]} 18... Bf8 {[%clk 0:02:30.1]} 19. Na4 {[%clk 0:02:13.8]} 19... Nd7
{[%clk 0:02:29.8]} 20. Bd4 {[%clk 0:02:08.1]} 20... Nc5 {[%clk 0:02:27.2]} 21.
Nxc5 {[%clk 0:02:06.6]} 21... bxc5 {[%clk 0:02:25.5]} 22. Ba1 {[%clk 0:02:04.7]}
22... a5 {[%clk 0:02:24.6]} 23. h4 {[%clk 0:01:58.8]} 23... a4 {[%clk
0:02:23.2]} 24. h5 {[%clk 0:01:58.5]} 24... h6 {[%clk 0:02:23.2]} 25. Rd3 {[%clk
0:01:56.3]} 25... axb3 {[%clk 0:02:17.7]} 26. axb3 {[%clk 0:01:57.2]} 26... Ra8
{[%clk 0:02:17.7]} 27. Rcd1 {[%clk 0:01:52.9]} 27... Rdb8 {[%clk 0:02:17]} 28.
Kh2 {[%clk 0:01:50.3]} 28... Ra2 {[%clk 0:02:01]} 29. R3d2 {[%clk 0:01:38.8]}
29... Ra3 {[%clk 0:01:56.8]} 30. Rd3 {[%clk 0:01:37.7]} 30... Qb7 {[%clk
0:01:55.4]} 31. Rb1 {[%clk 0:01:32.1]} 31... Rba8 {[%clk 0:01:51.2]} 32. Bb2
{[%clk 0:01:28.8]} 32... Ra2 {[%clk 0:01:47.9]} 33. Bc3 {[%clk 0:01:26.9]} 33...
Qc6 {[%clk 0:01:25.9]} 34. Rbd1 {[%clk 0:01:21.4]} 34... Rb8 {[%clk 0:01:20.1]}
35. Be1 {[%clk 0:01:14.5]} 35... Qe8 {[%clk 0:01:14.8]} 36. g4 {[%clk 0:01:09]}
36... Qe7 {[%clk 0:01:14.4]} 37. f3 {[%clk 0:01:08.1]} 37... Qg5 {[%clk
0:01:04.4]} 38. Bg3 {[%clk 0:01:00.6]} 38... Rb6 {[%clk 0:01:04]} 39. Kg2 {[%clk
0:00:55.9]} 39... e5 {[%clk 0:00:54.2]} 40. Qxg5 {[%clk 0:00:51.8]} 40... hxg5
{[%clk 0:00:55.1]} 41. Kf1 {[%clk 0:00:50.9]} 41... Rb2 {[%clk 0:00:49.8]} 42.
Be1 {[%clk 0:00:45.9]} 42... f6 {[%clk 0:00:48.3]} 43. Ba5 {[%clk 0:00:44]}
43... R6xb3 {[%clk 0:00:47.4]} 44. Bc7 {[%clk 0:00:39.9]} 44... Rxd3 {[%clk
0:00:34.2]} 45. Rxd3 {[%clk 0:00:40.8]} 45... Rc2 {[%clk 0:00:33.9]} 46. Bxd6
{[%clk 0:00:37.8]} 46... Rxc4 {[%clk 0:00:34.2]} 47. Bxf8 {[%clk 0:00:36.3]}
47... Kxf8 {[%clk 0:00:35.1]} 48. Rd7 {[%clk 0:00:36.8]} 48... Rc1+ {[%clk
0:00:30.3]} 49. Kf2 {[%clk 0:00:36.5]} 49... c4 {[%clk 0:00:30.5]} 50. Rc7
{[%clk 0:00:37]} 50... Kg8 {[%clk 0:00:29.8]} 51. Kg2 {[%clk 0:00:34.4]} 51...
Kh7 {[%clk 0:00:30]} 52. Kf2 {[%clk 0:00:34.6]} 52... Kh6 {[%clk 0:00:30.3]} 53.
Rc8 {[%clk 0:00:34.2]} 53... g6 {[%clk 0:00:28.2]} 54. hxg6 {[%clk 0:00:32.1]}
54... Kxg6 {[%clk 0:00:29.1]} 55. Ke3 {[%clk 0:00:30.6]} 55... Rc2 {[%clk
0:00:25]} 56. Rc7 {[%clk 0:00:28.9]} 56... Kh6 {[%clk 0:00:17.4]} 57. Kf2 {[%clk
0:00:27.7]} 57... Kg6 {[%clk 0:00:17.6]} 58. Ke3 {[%clk 0:00:28.1]} 58... c3
{[%clk 0:00:18.1]} 59. Kd3 {[%clk 0:00:27.9]} 59... Rd2+ {[%clk 0:00:18.4]} 60.
Ke3 {[%clk 0:00:28.5]} 60... Rc2 {[%clk 0:00:18.8]} 61. Kd3 {[%clk 0:00:28.9]}
61... Rd2+ {[%clk 0:00:19.2]} 62. Ke3 {[%clk 0:00:29.2]} 62... Rc2 {[%clk
0:00:19.8]} 1/2-1/2

[Event "*** Titled Tuesday Blitz"]
[Site "Chess.com"]
[Date "2021.04.06"]
[Round "6"]
[White "suneebaker"]
[Black "TC2304"]
[Result "1-0"]
[WhiteElo "2131"]
[BlackElo "2279"]
[TimeControl "180+1"]
[EndTime "11:08:51 PDT"]
[Termination "suneebaker won by resignation"]

1. e4 {[%clk 0:03:00.9]} 1... Nc6 {[%clk 0:02:59.6]} 2. Nf3 {[%clk 0:02:57.9]}
2... d6 {[%clk 0:02:59.4]} 3. d4 {[%clk 0:02:56.4]} 3... Bg4 {[%clk 0:02:59.9]}
4. Bb5 {[%clk 0:02:55.2]} 4... Bxf3 {[%clk 0:02:56.5]} 5. Qxf3 {[%clk
0:02:53.1]} 5... a6 {[%clk 0:02:55.8]} 6. Bxc6+ {[%clk 0:02:52.4]} 6... bxc6
{[%clk 0:02:56.7]} 7. O-O {[%clk 0:02:48.1]} 7... d5 {[%clk 0:02:56.7]} 8. Nc3
{[%clk 0:02:45.4]} 8... e6 {[%clk 0:02:54.3]} 9. Bf4 {[%clk 0:02:34.7]} 9... Rb8
{[%clk 0:02:46.7]} 10. b3 {[%clk 0:02:30.9]} 10... Bd6 {[%clk 0:02:32.1]} 11.
Bxd6 {[%clk 0:02:20.5]} 11... cxd6 {[%clk 0:02:25.5]} 12. Qg3 {[%clk 0:02:15.9]}
12... g6 {[%clk 0:02:17.6]} 13. Rfe1 {[%clk 0:02:08.5]} 13... Ne7 {[%clk
0:02:16.5]} 14. Rad1 {[%clk 0:01:58.3]} 14... O-O {[%clk 0:02:15.9]} 15. Qh4
{[%clk 0:01:55]} 15... Kg7 {[%clk 0:02:04.5]} 16. Rd3 {[%clk 0:01:52.3]} 16...
dxe4 {[%clk 0:01:57.6]} 17. Nxe4 {[%clk 0:01:45.1]} 17... Nf5 {[%clk 0:01:54.2]}
18. Qf4 {[%clk 0:01:36.5]} 18... Qe7 {[%clk 0:01:25.9]} 19. g4 {[%clk
0:01:26.5]} 19... Nh6 {[%clk 0:01:11.7]} 20. Nxd6 {[%clk 0:01:20.2]} 20... Rbd8
{[%clk 0:00:58.4]} 21. Nc4 {[%clk 0:01:17.5]} 21... Rd5 {[%clk 0:00:51.5]} 22.
Ne3 {[%clk 0:01:11.1]} 22... Ra5 {[%clk 0:00:47.2]} 23. a4 {[%clk 0:01:09.6]}
23... g5 {[%clk 0:00:42.6]} 24. Qe4 {[%clk 0:01:07.4]} 24... Qf6 {[%clk
0:00:33.3]} 25. c4 {[%clk 0:00:58]} 25... Qf4 {[%clk 0:00:25.5]} 26. Ng2 {[%clk
0:00:51.4]} 26... Qxe4 {[%clk 0:00:18.9]} 27. Rxe4 {[%clk 0:00:50.3]} 27... Rb8
{[%clk 0:00:18.7]} 28. c5 {[%clk 0:00:49.2]} 28... Rb4 {[%clk 0:00:17.1]} 29.
Ne3 {[%clk 0:00:46.1]} 29... Rxc5 {[%clk 0:00:16.2]} 30. dxc5 {[%clk 0:00:39.4]}
30... Rxe4 {[%clk 0:00:16.3]} 31. Rd6 {[%clk 0:00:35.1]} 31... Nxg4 {[%clk
0:00:15.9]} 32. Rxc6 {[%clk 0:00:28.3]} 32... Nxe3 {[%clk 0:00:15.1]} 33. fxe3
{[%clk 0:00:28.3]} 33... Rxe3 {[%clk 0:00:16]} 34. b4 {[%clk 0:00:24.1]} 34...
Rb3 {[%clk 0:00:14.8]} 35. Rb6 {[%clk 0:00:23.6]} 35... Kf6 {[%clk 0:00:10.9]}
36. c6 {[%clk 0:00:21.9]} 36... Ke7 {[%clk 0:00:11.1]} 37. b5 {[%clk 0:00:21.9]}
37... Kd6 {[%clk 0:00:07.8]} 38. Rb7 {[%clk 0:00:19.6]} 38... axb5 {[%clk
0:00:06.7]} 39. axb5 {[%clk 0:00:18.8]} 39... e5 {[%clk 0:00:06.9]} 40. Rd7+
{[%clk 0:00:16.8]} 40... Ke6 {[%clk 0:00:07.3]} 41. Rb7 {[%clk 0:00:14]} 41...
Kd6 {[%clk 0:00:05.3]} 42. c7 {[%clk 0:00:13.8]} 42... Kd7 {[%clk 0:00:04]} 43.
b6 {[%clk 0:00:13.5]} 43... e4 {[%clk 0:00:04]} 44. Rb8 {[%clk 0:00:13.4]} 44...
Rb1+ {[%clk 0:00:02.2]} 45. Kf2 {[%clk 0:00:12.8]} 45... Rc1 {[%clk 0:00:01.7]}
46. Rd8+ {[%clk 0:00:11.2]} 46... Ke6 {[%clk 0:00:01.3]} 47. c8=Q+ {[%clk
0:00:11.2]} 47... Rxc8 {[%clk 0:00:01.4]} 48. Rxc8 {[%clk 0:00:11.4]} 1-0

[Event "*** Titled Tuesday Blitz"]
[Site "Chess.com"]
[Date "2021.04.06"]
[Round "6"]
[White "Rodalquilar"]
[Black "eljanov"]
[Result "1-0"]
[WhiteElo "2692"]
[BlackElo "2855"]
[TimeControl "180+1"]
[EndTime "11:08:52 PDT"]
[Termination "Rodalquilar won by resignation"]

1. d4 {[%clk 0:03:00.9]} 1... Nf6 {[%clk 0:02:59.5]} 2. Bf4 {[%clk 0:03:01]}
2... e6 {[%clk 0:02:55]} 3. e3 {[%clk 0:03:01.3]} 3... c5 {[%clk 0:02:54.7]} 4.
c3 {[%clk 0:03:01.6]} 4... d5 {[%clk 0:02:54.4]} 5. Nf3 {[%clk 0:02:54]} 5...
Bd6 {[%clk 0:02:47.8]} 6. Bb5+ {[%clk 0:02:54]} 6... Nc6 {[%clk 0:02:47.5]} 7.
Bg3 {[%clk 0:02:53.8]} 7... O-O {[%clk 0:02:46.4]} 8. Nbd2 {[%clk 0:02:53.5]}
8... Ne7 {[%clk 0:02:43.7]} 9. Bd3 {[%clk 0:02:51.6]} 9... b6 {[%clk 0:02:39.8]}
10. e4 {[%clk 0:02:51.4]} 10... dxe4 {[%clk 0:02:29.9]} 11. Nxe4 {[%clk
0:02:51.6]} 11... Nxe4 {[%clk 0:02:11.1]} 12. Bxe4 {[%clk 0:02:52.5]} 12... Rb8
{[%clk 0:02:09.1]} 13. dxc5 {[%clk 0:02:52.2]} 13... Bxg3 {[%clk 0:02:08.8]} 14.
Qxd8 {[%clk 0:02:39.6]} 14... Rxd8 {[%clk 0:02:08.3]} 15. hxg3 {[%clk
0:02:40.5]} 15... f5 {[%clk 0:02:04.8]} 16. c6 {[%clk 0:02:40.8]} 16... Nd5
{[%clk 0:01:48.7]} 17. Bxd5 {[%clk 0:02:15.8]} 17... Rxd5 {[%clk 0:01:48.7]} 18.
Rd1 {[%clk 0:02:13.4]} 18... Rxd1+ {[%clk 0:01:30.8]} 19. Kxd1 {[%clk
0:02:13.5]} 19... Ba6 {[%clk 0:01:31.5]} 20. Ne5 {[%clk 0:02:00.1]} 20... Rd8+
{[%clk 0:01:31.1]} 21. Kc2 {[%clk 0:02:00.2]} 21... Rd5 {[%clk 0:01:30.7]} 22.
Re1 {[%clk 0:01:55.6]} 22... Kf8 {[%clk 0:01:26.8]} 23. c4 {[%clk 0:01:46.4]}
23... Rd8 {[%clk 0:01:13.8]} 24. Re3 {[%clk 0:01:21]} 24... Bc8 {[%clk
0:01:09.9]} 25. Ra3 {[%clk 0:01:19.9]} 25... a6 {[%clk 0:01:03.7]} 26. Rb3
{[%clk 0:01:20]} 26... Ke7 {[%clk 0:01:03.6]} 27. Rxb6 {[%clk 0:01:15.5]} 27...
g5 {[%clk 0:01:03.4]} 28. c7 {[%clk 0:01:03.5]} 28... Rg8 {[%clk 0:01:00.8]} 29.
c5 {[%clk 0:01:03.4]} 29... h5 {[%clk 0:00:59.6]} 30. Rb8 {[%clk 0:00:53.3]}
30... h4 {[%clk 0:00:57.4]} 31. gxh4 {[%clk 0:00:50.1]} 31... gxh4 {[%clk
0:00:57.3]} 32. b4 {[%clk 0:00:46.1]} 32... f4 {[%clk 0:00:57.5]} 33. Kc3 {[%clk
0:00:33.8]} 33... f3 {[%clk 0:00:50.9]} 34. Nxf3 {[%clk 0:00:34]} 34... Kd7
{[%clk 0:00:51.4]} 35. Nxh4 {[%clk 0:00:28.7]} 35... Kxc7 {[%clk 0:00:51.1]} 36.
Rb6 {[%clk 0:00:29]} 36... Rf8 {[%clk 0:00:40.3]} 37. Nf3 {[%clk 0:00:22.1]}
37... Rg8 {[%clk 0:00:40.3]} 38. g3 {[%clk 0:00:17.1]} 38... Rf8 {[%clk
0:00:40.1]} 39. Nd4 {[%clk 0:00:17.7]} 39... Rxf2 {[%clk 0:00:39.5]} 40. Nxe6+
{[%clk 0:00:18]} 40... Bxe6 {[%clk 0:00:39.5]} 41. Rxe6 {[%clk 0:00:18.9]} 41...
Rxa2 {[%clk 0:00:39.8]} 42. Rg6 {[%clk 0:00:18.5]} 42... Ra3+ {[%clk 0:00:36.5]}
43. Kc4 {[%clk 0:00:18.5]} 43... Ra4 {[%clk 0:00:36.9]} 44. Kb3 {[%clk
0:00:17.3]} 44... Ra1 {[%clk 0:00:36.6]} 45. g4 {[%clk 0:00:17.6]} 45... a5
{[%clk 0:00:34.4]} 46. bxa5 {[%clk 0:00:09.6]} 46... Rxa5 {[%clk 0:00:34.4]} 47.
Kc4 {[%clk 0:00:10.2]} 47... Ra1 {[%clk 0:00:30.9]} 48. g5 {[%clk 0:00:09.3]}
48... Rc1+ {[%clk 0:00:30.9]} 49. Kd5 {[%clk 0:00:09.4]} 49... Rd1+ {[%clk
0:00:28.9]} 50. Ke5 {[%clk 0:00:09.9]} 50... Rc1 {[%clk 0:00:28.9]} 51. c6
{[%clk 0:00:10]} 51... Rc5+ {[%clk 0:00:29.2]} 52. Kf4 {[%clk 0:00:09.2]} 52...
Kd8 {[%clk 0:00:28.3]} 53. Re6 {[%clk 0:00:08]} 53... Rc4+ {[%clk 0:00:24]} 54.
Kf5 {[%clk 0:00:08.2]} 54... Rc5+ {[%clk 0:00:24.5]} 55. Kf6 {[%clk 0:00:08.6]}
1-0

[Event "*** Titled Tuesday Blitz"]
[Site "Chess.com"]
[Date "2021.04.06"]
[Round "6"]
[White "BigAl"]
[Black "Aradhya2000"]
[Result "0-1"]
[WhiteElo "2486"]
[BlackElo "2602"]
[TimeControl "180+1"]
[EndTime "11:08:52 PDT"]
[Termination "Aradhya2000 won by resignation"]

1. Nf3 {[%clk 0:03:00.9]} 1... d5 {[%clk 0:02:59.7]} 2. g3 {[%clk 0:03:00.7]}
2... Nf6 {[%clk 0:02:59.6]} 3. Bg2 {[%clk 0:03:01.1]} 3... c5 {[%clk 0:02:59.7]}
4. O-O {[%clk 0:03:01.9]} 4... g6 {[%clk 0:03:00.3]} 5. d3 {[%clk 0:03:02.1]}
5... Bg7 {[%clk 0:03:00.9]} 6. Nbd2 {[%clk 0:03:03]} 6... O-O {[%clk 0:03:01.5]}
7. e4 {[%clk 0:03:03.9]} 7... Nc6 {[%clk 0:03:02]} 8. Re1 {[%clk 0:03:03.1]}
8... dxe4 {[%clk 0:03:02.4]} 9. dxe4 {[%clk 0:03:03.1]} 9... e5 {[%clk
0:03:02.8]} 10. c3 {[%clk 0:03:02.5]} 10... Be6 {[%clk 0:03:01.9]} 11. Qe2
{[%clk 0:02:58.5]} 11... Qc7 {[%clk 0:02:58.1]} 12. a4 {[%clk 0:02:46.9]} 12...
h6 {[%clk 0:02:54.1]} 13. Nc4 {[%clk 0:02:46.2]} 13... Nd7 {[%clk 0:02:53.7]}
14. h3 {[%clk 0:02:28.9]} 14... Nb6 {[%clk 0:02:50]} 15. Ne3 {[%clk 0:02:29]}
15... a5 {[%clk 0:02:44.1]} 16. Nd2 {[%clk 0:02:25.9]} 16... Rfd8 {[%clk
0:02:39.9]} 17. Ndc4 {[%clk 0:02:22.2]} 17... Nxc4 {[%clk 0:02:39.7]} 18. Nxc4
{[%clk 0:02:22.5]} 18... Rd7 {[%clk 0:02:35.3]} 19. Bf1 {[%clk 0:02:13.7]} 19...
Rad8 {[%clk 0:02:33]} 20. Be3 {[%clk 0:02:14]} 20... Nd4 {[%clk 0:02:32.6]} 21.
cxd4 {[%clk 0:02:08.1]} 21... cxd4 {[%clk 0:02:32.8]} 22. Rac1 {[%clk 0:01:53]}
22... dxe3 {[%clk 0:02:24.6]} 23. Nxe3 {[%clk 0:01:50.4]} 23... Qb6 {[%clk
0:02:23]} 24. Qf3 {[%clk 0:01:30.7]} 24... Qxb2 {[%clk 0:02:03.9]} 25. Bc4
{[%clk 0:01:30.3]} 25... Bxc4 {[%clk 0:01:57.7]} 26. Rxc4 {[%clk 0:01:30]} 26...
Rd4 {[%clk 0:01:53.7]} 27. Rc7 {[%clk 0:01:28.2]} 27... R8d7 {[%clk 0:01:52.5]}
28. Rxd7 {[%clk 0:01:23.5]} 28... Rxd7 {[%clk 0:01:53.4]} 29. Nd5 {[%clk
0:01:23.5]} 29... b5 {[%clk 0:01:43]} 30. Rd1 {[%clk 0:01:18.2]} 30... Kh8
{[%clk 0:01:22.4]} 31. Qg4 {[%clk 0:01:07.2]} 31... Rd8 {[%clk 0:00:58.2]} 32.
Rd3 {[%clk 0:00:53.1]} 32... bxa4 {[%clk 0:00:54.3]} 33. Rf3 {[%clk 0:00:48.4]}
33... a3 {[%clk 0:00:37.2]} 34. Rxf7 {[%clk 0:00:47.5]} 34... a2 {[%clk
0:00:34.6]} 35. Qxg6 {[%clk 0:00:46.7]} 35... Qc1+ {[%clk 0:00:34.4]} 36. Kg2
{[%clk 0:00:46.1]} 36... Qg5 {[%clk 0:00:34.2]} 37. Qb6 {[%clk 0:00:27.1]} 37...
a1=Q {[%clk 0:00:21]} 38. h4 {[%clk 0:00:27.4]} 38... Qgc1 {[%clk 0:00:20.3]}
39. Qxd8+ {[%clk 0:00:25.7]} 39... Kh7 {[%clk 0:00:20.6]} 40. Rxg7+ {[%clk
0:00:20.2]} 40... Kxg7 {[%clk 0:00:20.8]} 41. Qf6+ {[%clk 0:00:20.8]} 41... Kh7
{[%clk 0:00:17]} 42. Qf7+ {[%clk 0:00:20.3]} 42... Kh8 {[%clk 0:00:17.3]} 43.
Kh3 {[%clk 0:00:16.5]} 43... Qf1+ {[%clk 0:00:14.6]} 44. Kg4 {[%clk 0:00:16.5]}
44... Qad1+ {[%clk 0:00:14.6]} 45. f3 {[%clk 0:00:16]} 45... Qdxf3+ {[%clk
0:00:11]} 46. Qxf3 {[%clk 0:00:15.7]} 46... h5+ {[%clk 0:00:11.3]} 47. Kg5
{[%clk 0:00:12.7]} 47... Qxf3 {[%clk 0:00:12.2]} 48. Ne7 {[%clk 0:00:12.1]}
48... a4 {[%clk 0:00:11.9]} 49. Ng6+ {[%clk 0:00:08.9]} 49... Kg7 {[%clk
0:00:11.4]} 50. Ne7 {[%clk 0:00:09.6]} 50... Qxe4 {[%clk 0:00:11.3]} 51. Nf5+
{[%clk 0:00:09.2]} 51... Kf8 {[%clk 0:00:11.8]} 52. Kf6 {[%clk 0:00:08.6]} 52...
a3 {[%clk 0:00:11.1]} 53. g4 {[%clk 0:00:09.5]} 0-1

[Event "*** Titled Tuesday Blitz"]
[Site "Chess.com"]
[Date "2021.04.06"]
[Round "6"]
[White "Didici"]
[Black "VD_coach"]
[Result "1-0"]
[WhiteElo "2657"]
[BlackElo "2507"]
[TimeControl "180+1"]
[EndTime "11:08:54 PDT"]
[Termination "Didici won by resignation"]

1. d4 {[%clk 0:03:00.9]} 1... Nf6 {[%clk 0:02:59.9]} 2. c4 {[%clk 0:03:00]} 2...
g6 {[%clk 0:02:58.1]} 3. Nc3 {[%clk 0:02:58.9]} 3... Bg7 {[%clk 0:02:57.1]} 4.
e4 {[%clk 0:02:58]} 4... d6 {[%clk 0:02:51.9]} 5. h3 {[%clk 0:02:57.5]} 5... O-O
{[%clk 0:02:50.5]} 6. Be3 {[%clk 0:02:57.4]} 6... a6 {[%clk 0:02:27.2]} 7. Nf3
{[%clk 0:02:53.6]} 7... b6 {[%clk 0:02:26.5]} 8. Be2 {[%clk 0:02:36]} 8... c5
{[%clk 0:02:25.8]} 9. O-O {[%clk 0:02:27.4]} 9... Nbd7 {[%clk 0:02:24.4]} 10. d5
{[%clk 0:02:26.1]} 10... b5 {[%clk 0:02:24.4]} 11. cxb5 {[%clk 0:02:25.8]} 11...
Qa5 {[%clk 0:02:23.3]} 12. a4 {[%clk 0:02:22.2]} 12... Ne8 {[%clk 0:02:00.4]}
13. Nd2 {[%clk 0:02:02.9]} 13... Qc7 {[%clk 0:01:14.7]} 14. Nc4 {[%clk
0:01:59.3]} 14... Bb7 {[%clk 0:01:03.3]} 15. a5 {[%clk 0:01:42.9]} 15... axb5
{[%clk 0:00:56.3]} 16. Nxb5 {[%clk 0:01:42.1]} 16... Qb8 {[%clk 0:00:55.6]} 17.
Nc3 {[%clk 0:01:22.4]} 17... Ba6 {[%clk 0:00:42.8]} 18. Qc2 {[%clk 0:01:20.2]}
18... Nc7 {[%clk 0:00:35]} 19. Rfb1 {[%clk 0:01:01.1]} 19... Qb7 {[%clk
0:00:28.8]} 20. Ra4 {[%clk 0:00:57.8]} 20... Rfb8 {[%clk 0:00:29]} 21. b4 {[%clk
0:00:27.5]} 21... cxb4 {[%clk 0:00:23.6]} 22. Raxb4 {[%clk 0:00:28.4]} 22...
Qxb4 {[%clk 0:00:22.9]} 23. Rxb4 {[%clk 0:00:29.1]} 23... Rxb4 {[%clk
0:00:23.8]} 24. Nb6 {[%clk 0:00:21.3]} 24... Rd8 {[%clk 0:00:17]} 25. Nxd7
{[%clk 0:00:17.2]} 25... Rxd7 {[%clk 0:00:17.9]} 26. Bb6 {[%clk 0:00:17.3]}
26... Bxe2 {[%clk 0:00:15.8]} 27. Nxe2 {[%clk 0:00:17.4]} 27... Rb2 {[%clk
0:00:13.1]} 28. Qc6 {[%clk 0:00:17.1]} 28... Rd8 {[%clk 0:00:06.2]} 29. Qxc7
{[%clk 0:00:15.2]} 29... Ra8 {[%clk 0:00:06.7]} 30. Ng3 {[%clk 0:00:13.7]} 30...
h5 {[%clk 0:00:04.5]} 31. h4 {[%clk 0:00:13.3]} 31... Bf6 {[%clk 0:00:03.6]} 32.
Nf1 {[%clk 0:00:12.2]} 32... Rf8 {[%clk 0:00:01.3]} 33. g3 {[%clk 0:00:11.6]}
33... Rb1 {[%clk 0:00:02.2]} 34. Kg2 {[%clk 0:00:11.3]} 34... Kg7 {[%clk
0:00:02.4]} 35. Ne3 {[%clk 0:00:11.3]} 35... Ra1 {[%clk 0:00:02.8]} 36. Qb7
{[%clk 0:00:10.6]} 36... Bc3 {[%clk 0:00:02.9]} 37. a6 {[%clk 0:00:10.6]} 37...
Bd2 {[%clk 0:00:03]} 38. a7 {[%clk 0:00:10.6]} 38... Ra4 {[%clk 0:00:03.2]} 39.
Nc2 {[%clk 0:00:08.9]} 39... Bc3 {[%clk 0:00:03.1]} 40. Ne3 {[%clk 0:00:05.2]}
40... Ra2 {[%clk 0:00:03.4]} 41. Nc4 {[%clk 0:00:04.5]} 41... Be5 {[%clk
0:00:04.3]} 42. Nxe5 {[%clk 0:00:04.2]} 42... dxe5 {[%clk 0:00:05.2]} 43. Qc7
{[%clk 0:00:04.3]} 43... f5 {[%clk 0:00:05.5]} 44. Qxe5+ {[%clk 0:00:04.4]}
44... Kh7 {[%clk 0:00:06.4]} 45. Qxe7+ {[%clk 0:00:04.5]} 45... Kg8 {[%clk
0:00:07]} 46. Bd4 {[%clk 0:00:04.8]} 46... Rf7 {[%clk 0:00:06.7]} 47. Qe8+
{[%clk 0:00:05.1]} 1-0